[Event "FIDE WSTC-50-65 2022"]
[Site "Acqui Terme"]
[Date "2022.06.21"]
[Round "2.12"]
[White "Szabolcsi, Janos"]
[Black "Maryasin, Boris"]
[Result "1-0"]
[ECO "D24"]
[WhiteElo "2233"]
[BlackElo "2280"]
[Annotator "TA"]
[PlyCount "65"]
[EventDate "2022.06.20"]
[EventType "team-tourn"]
[EventCountry "ITA"]
[SourceTitle "playchess.com"]
[Source "ChessBase"]
[SourceQuality "1"]
[TimeControl "40/5400+30:1800+30"]

{[%evp 9,65,37,58,58,66,50,97,12,69,80,73,55,127,59,47,35,154,170,153,28,26,32,53,32,125,132,285,279,279,289,285,284,271,212,310,305,311,304,285,294,362,347,347,347,427,407,620,601,758,757,847,819,918,901,994,976,847,824]} 1. d4 {[%emt 0:01:00]} Nf6 {[%emt 0:01:00]} 2. Nf3 {[%emt 0:00:00]} d5 {[%emt 0:00:30]} 3. c4 {[%emt 0:00:00]} dxc4 {[%emt 0:00:30]} 4. Nc3 {[%emt 0:00:30]} Bf5 {[%emt 0:01:30]} 5. e3 {[%emt 0:01:30]} a6 {[%emt 0:00:30]} 6. Bxc4 {[%emt 0:00:30] D24: Queen's Gambit Accepted: 3 Nf3 Nf6 4 Nc3.} e6 {[%emt 0:00:30]} 7. O-O {[%emt 0:01:30]} c5 {[%emt 0:00:30]} (7... Nc6 $14) 8. Qe2 {[%emt 0:02:30]} ({White should try} 8. d5 $1 $16) 8... Nc6 {[%emt 0:02:30]} (8... b5 $11 9. Bd3 Bxd3 10. Qxd3 Nc6) 9. Rd1 $14 {[%emt 0:03:30] d5 is the strong threat.} Qc7 {[%emt 0:01:30] [#]} 10. h3 $146 {[%emt 0:04:30]} ({Predecessor:} 10. d5 exd5 11. Nxd5 Nxd5 12. e4 Nc3 13. bxc3 Bg4 14. e5 Nd8 15. Qe4 Be6 16. Bf4 {½-½ (33) Gurr,L (2048)-Sharp,P (2144) Birmingham 2000}) 10... b5 {[%emt 0:03:30]} (10... cxd4 $14 11. exd4 Bb4) 11. Bb3 {[%emt 0:01:30]} (11. e4 $16 Bg6 12. d5) 11... c4 {[%emt 0:02:30]} 12. e4 $1 {[%emt 0:02:30]} Nxe4 {[%emt 0:04:30]} (12... Bg6 $1 $14 13. Bc2 Be7) 13. Nxe4 $16 {[%emt 0:01:30][%cal Od4d5]} cxb3 {[%emt 0:00:00] [#]} 14. axb3 {[%emt 0:10:30]} (14. d5 $1 $16 {[%cal Rd5d6] And now d6 would win.} O-O-O 15. dxc6 Rxd1+ 16. Qxd1 Bxe4 {[#]} 17. Bf4 $1 Bxf3 18. Qxf3) 14... Be7 $11 {[%emt 0:01:00]} 15. d5 $36 {[%emt 0:12:30][%mdl 2048] Black must now prevent d6. White is pushing.} exd5 {[%emt 0:00:30]} 16. Nc3 {[%emt 0:00:30][%cal Be4c3,Bc3d5,Bd5e7][%mdl 32] Pair of Knights!} O-O {[%emt 0:04:30]} (16... Be6 $1 $14) 17. Nxd5 $16 {[%emt 0:00:30]} Qb7 {[%emt 0:00:30] Loses the game.} (17... Qd6 $16 {is a better defense.}) 18. Nd4 $18 {[%emt 0:04:30]} Nxd4 {[%emt 0:09:30]} 19. Nxe7+ {[%emt 0:00:00]} Kh8 {[%emt 0:00:30]} 20. Rxd4 {[%emt 0:00:00]} Rae8 {[%emt 0:00:30]} 21. Qe5 {[%emt 0:11:30]} ({Weaker is} 21. Bg5 f6 $14) 21... Bxh3 {[%emt 0:04:30]} (21... Bc8 $142) 22. gxh3 {[%emt 0:02:30] Hoping for Re4.} Rxe7 {[%emt 0:00:00]} 23. Qd5 {[%emt 0:01:30]} Re1+ {[%emt 0:00:00]} 24. Kg2 $1 {[%emt 0:00:30]} Qxd5+ {[%emt 0:01:30]} 25. Rxd5 {[%emt 0:01:30]} h6 {[%emt 0:01:30]} 26. Rc5 {[%emt 0:00:30] Prevents Rc8.} Ra8 {[%emt 0:01:30]} 27. b4 {[%emt 0:00:30]} Rd8 {[%emt 0:00:30]} (27... Rd1 $142 28. Ra3 Rd4) 28. Rxa6 {[%emt 0:02:30] White is clearly winning.} Rd4 {[%emt 0:00:30]} 29. Be3 {[%emt 0:00:30]} Rdd1 {[%emt 0:00:30]} 30. Rxb5 {[%emt 0:01:30]} Rg1+ {[%emt 0:00:30]} 31. Kf3 {[%emt 0:00:00]} Rh1 {[%emt 0:00:30]} 32. Rh5 {[%emt 0:00:00]} Rd3 {[%emt 0:00:30]} 33. Ra3 {Weighted Error Value: White=0.21 (precise) /Black=0.50} 1-0

[Event "FIDE WSTC-50-65 2022"]
[Site "Acqui Terme"]
[Date "2022.06.21"]
[Round "2.14"]
[White "Littlewood, Paul E"]
[Black "Simon, Ralf-Axel"]
[Result "1-0"]
[ECO "B95"]
[WhiteElo "2347"]
[BlackElo "2143"]
[Annotator "TA"]
[PlyCount "41"]
[EventDate "2022.06.20"]
[EventType "team-tourn"]
[EventCountry "ITA"]
[SourceTitle "playchess.com"]
[Source "ChessBase"]
[SourceQuality "1"]
[TimeControl "40/5400+30:1800+30"]

{[%evp 16,41,16,12,19,25,95,91,90,87,239,68,94,98,91,66,60,60,68,59,72,66,66,18,124,113,705,609]} 1. e4 {[%emt 0:01:00]} c5 {[%emt 0:01:00]} 2. Nf3 {[%emt 0:00:00]} d6 {[%emt 0:00:00]} 3. d4 {[%emt 0:00:00]} cxd4 {[%emt 0:00:00]} 4. Nxd4 {[%emt 0:00:30]} Nf6 {[%emt 0:00:00]} 5. Nc3 {[%emt 0:00:00]} a6 {[%emt 0:00:00]} 6. Bg5 {[%emt 0:01:00]} e6 {[%emt 0:00:30]} 7. Qf3 {[%emt 0:00:30]} Be7 {[%emt 0:07:30]} 8. O-O-O {[%emt 0:01:30]} Qc7 {[%emt 0:05:30]} 9. Qg3 {[%emt 0:09:30]} O-O {[%emt 0:23:30] B95: Sicilian Najdorf: 6 Bg5 e6, unusual White 7th moves.} 10. f4 {[%emt 0:10:30]} (10. Bh6 {seems wilder.} Ne8 11. h4 b5 12. a3) 10... Kh8 {[%emt 0:19:30]} (10... Nbd7 $11) 11. Bd3 $16 {[%emt 0:10:30]} Ng8 {[%emt 0:15:30] White is better.} 12. e5 {[%emt 0:16:30][%cal Od3h7] [#] Black must now prevent Bxh7!} Bxg5 $2 {[%emt 0:11:35]} (12... h6 $16 {was called for.}) 13. Qxg5 $2 {[%emt 0:03:30]} (13. fxg5 $18 {[%cal Od3h7] And now Bxh7! would win.} dxe5 14. Rhe1) 13... dxe5 {[%emt 0:01:13]} 14. fxe5 {[%emt 0:00:30]} Nd7 {[%emt 0:01:55] [#]} 15. Nf3 $146 {[%emt 0:05:30][%mdl 128] White attacks.} ({Predecessor:} 15. Rhe1 Nc5 16. Ne4 Nxe4 17. Rxe4 f6 18. Rh4 Nh6 19. exf6 Rxf6 20. Nf3 Bd7 21. Qe5 Qxe5 22. Nxe5 {1-0 (42) Zielinski,S-Bekemann,U DESC email 2005}) 15... Nc5 {[%emt 0:01:48]} 16. Ne4 {[%emt 0:05:30]} Nxd3+ {[%emt 0:04:39]} 17. Rxd3 {[%emt 0:00:30]} Bd7 {[%emt 0:00:06]} 18. Nd6 {[%emt 0:06:30]} Bc6 {[%emt 0:00:37]} 19. Nd4 {[%emt 0:02:30] Pair of Knights!} (19. Kb1 $14 {is more appropriate.}) 19... Qe7 {[%emt 0:01:57]} (19... Bd5 $1 $11) 20. Qg3 {[%emt 0:02:30] 0x0.00222972abe1dp-1022s more active pieces.} Rad8 $2 {[%emt 0:00:41][%mdl 8192] [#]} (20... Nh6 $16) 21. N4f5 $1 {[%emt 0:01:30][%mdl 512] Weighted Error Value: White=0.36/Black=0.36} 1-0

[Event "FIDE WSTC-50-65 2022"]
[Site "Acqui Terme"]
[Date "2022.06.21"]
[Round "2.15"]
[White "Bachmann, Andreas"]
[Black "Povah, Nigel E"]
[Result "0-1"]
[ECO "E01"]
[WhiteElo "2192"]
[BlackElo "2201"]
[Annotator "NA RC"]
[PlyCount "68"]
[EventDate "2022.06.20"]
[EventType "team-tourn"]
[EventCountry "ITA"]
[SourceTitle "playchess.com"]
[Source "ChessBase"]
[SourceQuality "1"]
[TimeControl "40/5400+30:1800+30"]

1. d4 {[%emt 0:01:00]} Nf6 {[%emt 0:01:00]} 2. c4 {[%emt 0:00:00]} e6 {[%emt 0:00:00]} 3. g3 {[%emt 0:00:00]} c5 {[%emt 0:00:00]} 4. Nf3 {[%emt 0:00:30]} cxd4 {[%emt 0:00:30]} 5. Nxd4 {[%emt 0:00:30]} d5 {[%emt 0:00:30]} 6. Bg2 {[%emt 0:00:30]} e5 {[%emt 0:00:00]} 7. Nf3 {[%emt 0:00:30]} d4 {[%emt 0:01:00]} 8. O-O {[%emt 0:00:30]} Nc6 {[%emt 0:00:00]} 9. e3 {[%emt 0:00:30]} Be7 {[%emt 0:01:00]} 10. exd4 {[%emt 0:02:30]} exd4 {[%emt 0:00:00]} 11. Bf4 {[%emt 0:04:30]} Be6 {[%emt 0:11:00]} 12. Ne5 {[%emt 0:11:30]} Rc8 {[%emt 0:03:30]} 13. Nd2 {[%emt 0:04:30]} Nxe5 {[%emt 0:17:30]} 14. Bxe5 {[%emt 0:00:30]} Ng4 {[%emt 0:00:00]} 15. Qe2 {[%emt 0:21:30]} Nxe5 {[%emt 0:05:00]} 16. Qxe5 {[%emt 0:00:30]} O-O {[%emt 0:00:30]} 17. Bxb7 {[%emt 0:04:30]} Rb8 {[%emt 0:03:30]} 18. Bd5 {[%emt 0:07:30]} Bf6 {[%emt 0:06:30]} 19. Qe4 {[%emt 0:00:30]} Bxd5 {[%emt 0:08:30]} 20. Qxd5 {[%emt 0:04:30]} Qxd5 {[%emt 0:03:30]} 21. cxd5 {[%emt 0:00:00]} Rxb2 {[%emt 0:00:30]} 22. Ne4 {[%emt 0:02:00]} Rd8 {[%emt 0:07:30]} 23. d6 {[%emt 0:10:30]} Be5 {[%emt 0:03:30]} 24. Rfd1 {[%emt 0:03:31]} f5 {[%emt 0:07:30]} 25. Nc5 {[%emt 0:08:06]} Rxd6 {[%emt 0:04:02]} 26. Nd3 {[%emt 0:00:34]} Rb5 {[%emt 0:01:47]} 27. Rac1 {[%emt 0:00:50]} Bf6 {[%emt 0:01:21]} 28. Rc7 {[%emt 0:02:15]} Ra5 {[%emt 0:03:39]} 29. Rd2 {[%emt 0:00:19]} h6 {[%emt 0:05:59]} 30. Kf1 {[%emt 0:00:50]} Rda6 {[%emt 0:00:28]} 31. Rcc2 {[%emt 0:03:20]} Kf7 {[%emt 0:00:51]} 32. f4 {[%emt 0:01:36]} g5 {[%emt 0:00:15]} 33. Ne5+ {[%emt 0:04:34]} Bxe5 {[%emt 0:02:08]} 34. fxe5 {[%emt 0:00:03]} Ra4 {[%emt 0:01:07]} 0-1

[Event "FIDE WSTC-50-65 2022"]
[Site "Acqui Terme"]
[Date "2022.06.21"]
[Round "2.16"]
[White "Snape, Ian L"]
[Black "Sprotte, Norbert"]
[Result "1/2-1/2"]
[ECO "C18"]
[WhiteElo "2112"]
[BlackElo "2155"]
[Annotator "NA RC"]
[PlyCount "47"]
[EventDate "2022.06.20"]
[EventType "team-tourn"]
[EventCountry "ITA"]
[SourceTitle "playchess.com"]
[Source "ChessBase"]
[SourceQuality "1"]
[TimeControl "40/5400+30:1800+30"]

1. e4 {[%emt 0:01:00]} e6 {[%emt 0:01:00]} 2. d4 {[%emt 0:00:00]} d5 {[%emt 0:00:00]} 3. Nc3 {[%emt 0:00:00]} Bb4 {[%emt 0:00:00]} 4. e5 {[%emt 0:00:00]} c5 {[%emt 0:00:30]} 5. a3 {[%emt 0:00:00]} Bxc3+ {[%emt 0:00:00]} 6. bxc3 {[%emt 0:00:30]} Qa5 {[%emt 0:00:00]} 7. Bd2 {[%emt 0:00:00]} Qa4 {[%emt 0:00:30]} 8. Qg4 {[%emt 0:00:00]} Kf8 {[%emt 0:00:30]} 9. h4 {[%emt 0:00:00]} Nc6 {[%emt 0:01:30]} 10. h5 {[%emt 0:00:00]} h6 {[%emt 0:01:30]} 11. Qd1 {[%emt 0:05:30]} b6 {[%emt 0:08:30]} 12. Nf3 {[%emt 0:10:30]} Ba6 {[%emt 0:05:30]} 13. Rh4 {[%emt 0:03:30]} Bxf1 {[%emt 0:02:30]} 14. Kxf1 {[%emt 0:00:30]} c4 {[%emt 0:02:30]} 15. Rf4 {[%emt 0:02:30]} Nge7 {[%emt 0:01:30]} 16. Nh4 {[%emt 0:05:30]} Rg8 {[%emt 0:08:30]} 17. Be3 {[%emt 0:23:30]} Ke8 {[%emt 0:01:30]} 18. Ke1 {[%emt 0:00:30]} Nd8 {[%emt 0:06:30]} 19. Kd2 {[%emt 0:00:30]} Kd7 {[%emt 0:01:30]} 20. Qb1 {[%emt 0:08:30]} Kc7 {[%emt 0:11:30]} 21. g4 {[%emt 0:02:30]} a5 {[%emt 0:04:30]} 22. Rf3 {[%emt 0:01:30]} Qe8 {[%emt 0:04:30]} 23. Ra2 {[%emt 0:00:30]} Nc8 {[%emt 0:06:30]} 24. Rg3 {[%emt 0:05:30]} 1/2-1/2

[Event "FIDE WSTC-50-65 2022"]
[Site "Acqui Terme"]
[Date "2022.06.22"]
[Round "3.1"]
[White "Olafsson, Helgi"]
[Black "Adams, Michael"]
[Result "0-1"]
[ECO "E04"]
[WhiteElo "2511"]
[BlackElo "2698"]
[Annotator "TA"]
[PlyCount "104"]
[EventDate "2022.06.20"]
[EventType "team-tourn"]
[EventCountry "ITA"]
[SourceTitle "playchess.com"]
[Source "ChessBase"]
[SourceQuality "1"]
[TimeControl "40/5400+30:1800+30"]

{[%evp 13,104,37,39,39,39,27,29,23,31,17,18,8,10,17,37,0,0,0,0,0,0,-7,-7,-22,-8,-53,-10,-35,-32,-46,-29,-29,-37,-54,-31,-54,-5,-7,-8,-6,-9,-10,0,0,0,0,0,0,0,0,0,-216,-216,-214,-203,-213,-209,-207,-146,-157,-139,-310,-310,-310,-310,-323,-322,-519,-212,-247,0,0,0,-62,-66,-78,-27,-358,-389,-779,-733,-645,-605,-1148,-1169,-1087,-1125,-1087,-945,-1047,-1047,-6083,-5122]} 1. d4 {[%emt 0:01:00]} Nf6 {[%emt 0:01:00]} 2. c4 {[%emt 0:00:00]} e6 {[%emt 0:00:00]} 3. g3 {[%emt 0:01:00]} d5 {[%emt 0:00:00][%cal Bd7d5,Bd5c4][%mdl 32]} 4. Nf3 {[%emt 0:00:30]} dxc4 {[%emt 0:00:30]} 5. Bg2 {[%emt 0:00:00]} a6 {[%emt 0:00:30]} 6. O-O {[%emt 0:01:00]} Nc6 {[%emt 0:00:00]} 7. e3 {[%emt 0:01:30]} Bd7 {[%emt 0:01:00]} 8. Qe2 {[%emt 0:01:30] E04: Open Catalan: 5 Nf3.} Bd6 $1 {[%emt 0:00:30][%mdl 4] is currently scoring better than 8...b5.} 9. Qxc4 {[%emt 0:01:30]} O-O {[%emt 0:00:30]} 10. Nc3 {[%emt 0:03:30] White has an edge.} b5 {[%emt 0:02:30]} 11. Qe2 {[%emt 0:00:30]} e5 {[%emt 0:05:30] [#]} 12. Rd1 $146 {[%emt 0:20:30]} ({Predecessor:} 12. a3 exd4 13. Nxd4 Nxd4 14. exd4 Rb8 15. Be3 a5 16. Qd2 b4 17. axb4 axb4 18. Na4 {½-½ (31) Beliavsky,A (2536)-Horvath,J (2520) Budapest 2018}) 12... exd4 {[%emt 0:10:30]} 13. Nxd4 {[%emt 0:04:30]} Qe8 {[%emt 0:03:30]} 14. Nxc6 {[%emt 0:16:30]} Bxc6 {[%emt 0:00:30]} 15. a3 {[%emt 0:00:30]} Be5 {[%emt 0:06:30]} 16. Bd2 {[%emt 0:00:30]} Bxg2 {[%emt 0:06:30]} 17. Kxg2 {[%emt 0:00:30]} c5 {[%emt 0:00:30]} 18. Be1 {[%emt 0:00:30]} Qe6 {[%emt 0:01:30]} 19. Rac1 {[%emt 0:03:30]} h5 {[%emt 0:03:30]} 20. h3 {[%emt 0:02:30]} Rad8 {[%emt 0:03:30]} 21. Qf3 {[%emt 0:08:30]} c4 {[%emt 0:12:30]} 22. Rxd8 {[%emt 0:07:30]} Rxd8 {[%emt 0:00:00]} 23. Rd1 {[%emt 0:00:30]} Rb8 {[%emt 0:02:00]} 24. Qe2 {[%emt 0:08:04]} a5 {[%emt 0:02:30]} (24... Re8 $15) 25. e4 $1 $11 {[%emt 0:02:10]} h4 {[%emt 0:11:30]} 26. g4 $1 {[%emt 0:03:57]} Bxc3 {[%emt 0:06:30]} 27. Bxc3 {[%emt 0:00:12]} b4 {[%emt 0:00:36]} 28. axb4 {[%emt 0:01:11]} axb4 {[%emt 0:00:24]} 29. Bxf6 {[%emt 0:01:22]} gxf6 {[%emt 0:01:04][%mdl 4096] Endgame KQR-KQR} 30. Rd5 {[%emt 0:08:50]} c3 {[%emt 0:02:19]} 31. bxc3 {[%emt 0:00:31]} bxc3 {[%emt 0:00:48]} 32. g5 $2 {[%emt 0:01:36] [#]} (32. Rh5 $11) 32... Rc8 $1 $19 {[%emt 0:07:54]} 33. Qc2 {[%emt 0:00:32]} Kf8 {[%emt 0:01:02]} 34. gxf6 {[%emt 0:00:23]} Qxf6 {[%emt 0:00:11]} 35. Rf5 {[%emt 0:00:12]} Qe6 {[%emt 0:03:12]} 36. Rf3 {[%emt 0:00:14]} Qe5 {[%emt 0:01:41] Black is more active.} 37. Re3 $2 {[%emt 0:01:01]} (37. Rf5 $17 Qd6 38. Rd5 Qg6+ 39. Kh1) 37... Rc6 {[%emt 0:00:38] Strongly threatening ...Qg5+.} 38. Kh1 {[%emt 0:00:43]} Qd4 {[%emt 0:01:27] aiming for ...Qd2.} 39. Kh2 {[%emt 0:00:11]} Kg7 {[%emt 0:02:25]} 40. Rf3 $2 {[%emt 0:00:00]} (40. Re1) 40... Rc5 {[%emt 0:00:00]} (40... Qe5+ $142 41. Kh1 Qg5) 41. Re3 {[%emt 0:01:51]} Kg8 $2 {[%emt 0:05:49]} ({Inferior is} 41... Qd2 42. Qxd2 cxd2 43. Rd3 $11) ({Black should try} 41... Qe5+ $19 42. Kh1 Rc6) 42. e5 $1 $11 {[%emt 0:04:30]} Kf8 {[%emt 0:03:30]} 43. Re4 {[%emt 0:04:30]} (43. Qf5 $11) 43... Qd5 $1 $36 {[%emt 0:04:30][%mdl 2048] Black has the initiative.} 44. Re3 $1 {[%emt 0:00:30]} Rc6 {[%emt 0:01:30]} (44... Qc4 $17 45. Qd1 Qf4+ 46. Kh1 Kg7) 45. Re4 $2 {[%emt 0:06:18][%mdl 8192]} (45. e6 $1 $11 {and White is okay.}) 45... Rg6 $19 {[%emt 0:01:46] White must now prevent ...Qc6.} 46. e6 $2 {[%emt 0:06:33]} (46. Qa4 Qc6 47. e6 Qd6+ 48. Kh1 Rxe6 49. Rxe6 fxe6 50. Qa8+ Kg7 51. Qb7+ Kh6 52. Qc8) 46... Qd6+ {[%emt 0:11:05] Black is clearly winning.} 47. Kh1 {[%emt 0:02:09]} Qc6 {[%emt 0:00:45] ( -> ...f5)} 48. exf7 {[%emt 0:07:22] [#]} Re6 $1 {[%emt 0:00:31]} 49. f3 {[%emt 0:00:04]} Rxe4 {[%emt 0:00:08]} 50. fxe4 {[%emt 0:00:01]} Kxf7 {[%emt 0:00:56]} 51. Kg2 {[%emt 0:00:12]} Qc7 {[%emt 0:03:13] Threatens to win with ...Qg3+.} 52. Qf2+ {[%emt 0:00:55]} Kg8 {[%emt 0:00:51] Weighted Error Value: White=0.67/Black=0.16 (very precise)} 0-1

[Event "FIDE WSTC-50-65 2022"]
[Site "Acqui Terme"]
[Date "2022.06.22"]
[Round "3.2"]
[White "Short, Nigel D"]
[Black "Hjartarson, Johann"]
[Result "1-0"]
[ECO "B06"]
[WhiteElo "2622"]
[BlackElo "2472"]
[Annotator "TA"]
[PlyCount "67"]
[EventDate "2022.06.20"]
[EventType "team-tourn"]
[EventCountry "ITA"]
[SourceTitle "playchess.com"]
[Source "ChessBase"]
[SourceQuality "1"]
[TimeControl "40/5400+30:1800+30"]

{[%evp 10,67,31,21,15,12,35,18,20,22,21,9,24,7,4,16,0,0,50,47,73,72,110,113,135,112,122,102,97,102,242,50,53,54,80,50,73,83,83,90,89,57,47,55,92,91,305,293,285,281,29982,29983,29983,29984,29984,29985,29990,29991,29991,29992]} 1. e4 {[%emt 0:01:00]} g6 {[%emt 0:01:00]} 2. d4 {[%emt 0:00:00]} Bg7 {[%emt 0:00:00]} 3. Nf3 {[%emt 0:03:00]} d6 {[%emt 0:00:00]} 4. Bc4 {[%emt 0:00:30]} Nf6 {[%emt 0:00:30]} 5. Qe2 {[%emt 0:00:00]} O-O {[%emt 0:00:30]} 6. e5 {[%emt 0:00:00]} dxe5 {[%emt 0:00:00] B06: Modern Defence.} 7. dxe5 {[%emt 0:00:30]} Nd5 {[%emt 0:00:00]} 8. h3 $1 {[%emt 0:00:00] Inhibits Bg4. The main line 8.h3 scores better than 8.0-0.} Be6 {[%emt 0:00:30] The position is equal.} 9. O-O {[%emt 0:01:00]} Nd7 {[%emt 0:00:30]} 10. Re1 $5 {[%emt 0:02:30][%mdl 4] Leaves trodden paths.} c6 {[%emt 0:02:30]} 11. a4 {[%emt 0:00:30]} Qc7 {[%emt 0:08:30]} 12. Bd2 {[%emt 0:13:30]} a5 {[%emt 0:15:30]} 13. Na3 {[%emt 0:04:30] [#]} b6 $146 {[%emt 0:03:30]} ({Black should try} 13... Rad8 $11) ({Predecessor:} 13... Nc5 14. b3 Rad8 15. Bxd5 Bxd5 16. Nc4 b6 17. Be3 Nd7 18. Bf4 Nc5 19. Be3 Nd7 20. Bf4 Nc5 21. Be3 Nd7 {½-½ (21) Gurevich,V (2469)-Lai,H (2461) Germany 2019}) 14. c3 $14 {[%emt 0:02:30]} Rad8 {[%emt 0:02:30]} 15. Nc2 {[%emt 0:01:30]} c5 {[%emt 0:02:30] Inhibits Ncd4.} 16. Na3 $1 {[%emt 0:00:30]} Qc8 {[%emt 0:09:30]} 17. Qe4 {[%emt 0:05:30]} Nc7 {[%emt 0:01:30][%cal Od7e5]} 18. Bg5 {[%emt 0:00:30]} Rfe8 {[%emt 0:06:30]} 19. Qh4 {[%emt 0:03:30]} Bf8 {[%emt 0:01:30] [#]} (19... Bxc4 $16 {was necessary.} 20. Nxc4 Bf8) 20. Bh6 $2 {[%emt 0:01:30]} ({White has to play} 20. Nb5 $1 $18) 20... Bxh6 {[%emt 0:02:30]} 21. Qxh6 {[%emt 0:00:30]} Nf8 {[%emt 0:00:30]} 22. Qh4 {[%emt 0:23:30]} Kg7 {[%emt 0:11:30]} 23. Ng5 {[%emt 0:04:30]} Bxc4 {[%emt 0:01:30]} 24. Nxc4 {[%emt 0:00:30]} h6 {[%emt 0:01:30]} 25. Nf3 {[%emt 0:01:30][%cal Bg5f3,Bf3e5,Be5f7][%mdl 32] White is much more active.} Nd5 {[%emt 0:02:30]} 26. Rad1 {[%emt 0:06:30]} Qc6 {[%emt 0:03:30]} 27. e6 {[%emt 0:02:30] Strongly threatening exf7.} fxe6 {[%emt 0:03:30]} (27... Nxe6 28. Nce5 Qa8 29. Nxg6) (27... f6 $16) 28. Nfe5 $18 {[%emt 0:01:30]} ({Not} 28. Nce5 Qc7 29. g4 Nf4 30. Rxd8 Rxd8 $18) 28... Qxa4 {[%emt 0:02:05] [#]} 29. Nf7 $1 {[%emt 0:01:53] And now b3 would win.} g5 $2 {[%emt 0:08:03]} (29... Qxc4 $18 30. Qxc4 Kxf7) 30. Qxh6+ {[%emt 0:01:38] White mates.} Kxf7 {[%emt 0:00:07]} 31. Ne5+ {[%emt 0:00:07]} Kg8 {[%emt 0:00:03]} 32. Qxg5+ {[%emt 0:00:12]} Kh7 {[%emt 0:03:26]} 33. Qh5+ {[%emt 0:00:13]} Kg7 {[%emt 0:02:31]} 34. Rd3 {[%emt 0:00:22] Weighted Error Value: White=0.13 (very precise) /Black=0.54} 1-0

[Event "FIDE WSTC-50-65 2022"]
[Site "Acqui Terme"]
[Date "2022.06.22"]
[Round "3.3"]
[White "Petursson, Margeir"]
[Black "Hebden, Mark L"]
[Result "1/2-1/2"]
[ECO "E74"]
[WhiteElo "2450"]
[BlackElo "2452"]
[Annotator "TA"]
[PlyCount "71"]
[EventDate "2022.06.20"]
[EventType "team-tourn"]
[EventCountry "ITA"]
[SourceTitle "playchess.com"]
[Source "ChessBase"]
[SourceQuality "1"]
[TimeControl "40/5400+30:1800+30"]

{[%evp 18,71,18,5,15,0,0,0,0,0,23,0,0,0,-10,-85,-58,-42,-42,-34,-35,-21,-31,-20,-24,-48,41,-24,0,0,50,0,75,87,91,83,132,-91,37,35,38,8,28,0,0,0,26,24,22,22,23,24,27,21,35,0]} 1. d4 {[%emt 0:01:00]} Nf6 {[%emt 0:01:00]} 2. c4 {[%emt 0:00:00]} g6 {[%emt 0:00:30]} 3. Nc3 {[%emt 0:00:00]} Bg7 {[%emt 0:00:00]} 4. e4 {[%emt 0:00:30]} d6 {[%emt 0:00:00]} 5. Be2 {[%emt 0:00:00]} O-O {[%emt 0:00:30]} 6. Bg5 {[%emt 0:00:00]} c5 {[%emt 0:01:30]} 7. d5 {[%emt 0:00:30]} h6 {[%emt 0:04:30]} 8. Be3 {[%emt 0:00:30]} e6 {[%emt 0:01:30]} 9. dxe6 {[%emt 0:00:30]} Bxe6 {[%emt 0:00:30]} 10. Qd2 {[%emt 0:00:30]} Qa5 {[%emt 0:00:30] E74: King's Indian: Averbakh Variation: 6...c5.} 11. Bxh6 {[%emt 0:03:30]} Bxh6 {[%emt 0:01:30]} 12. Qxh6 {[%emt 0:00:00]} Nxe4 $1 {[%emt 0:00:30] The position is equal.} 13. Rc1 {[%emt 0:02:00]} Nc6 {[%emt 0:06:30][%cal Bb8c6,Bc6d4,Bd4f5][%mdl 32]} 14. h4 {[%emt 0:07:30]} (14. Nf3 $5 {[%cal Re1g1]}) 14... Nd4 {[%emt 0:03:30] [#]} 15. Bd3 $146 {[%emt 0:13:30]} ({Predecessor:} 15. Kf1 Nxc3 16. Rxc3 Qa4 17. h5 Nxe2 18. b3 Qxa2 19. Nxe2 Qa1+ 20. Rc1 Qg7 21. Qd2 {½-½ (30) Garau,B (2362)-Alfaro de Hombre,J (2247) ICCF email 2017}) 15... Nxc3 {[%emt 0:04:30]} 16. bxc3 {[%emt 0:08:30]} (16. Rxc3 $11 {keeps the balance.} Rfe8 17. h5 Bxc4+ 18. Kd1 Qa4+ 19. b3 Bxb3+ 20. axb3 Nxb3 21. Nf3 (21. hxg6 Qa1+ 22. Rc1 Qxc1+ 23. Qxc1 Nxc1 $15) 21... Qa1+ 22. Kc2 Qa2+ 23. Kd1) 16... Rfe8 {[%emt 0:02:30] [#] ...Bxc4+ is the strong threat.} 17. Kf1 {[%emt 0:02:30]} Bf5 $1 {[%emt 0:01:30]} 18. Rh3 {[%emt 0:05:30]} Bxd3+ {[%emt 0:02:30]} (18... Qxa2 19. cxd4 Bxh3 20. gxh3 $16 (20. Nxh3 Qb2 $16)) (18... Bxh3 19. Nxh3 Ne6 20. h5 $16) 19. Rxd3 {[%emt 0:01:30]} Nf5 {[%emt 0:00:30]} 20. Qf4 {[%emt 0:01:30][%cal Oh4h5]} Qxa2 {[%emt 0:06:30]} 21. h5 {[%emt 0:05:30]} Re6 {[%emt 0:06:30]} (21... Re5 $15 22. g4 g5) 22. g4 {[%emt 0:07:30]} (22. hxg6 $14 fxg6 23. g4) 22... Ne7 {[%emt 0:15:30]} (22... Ng7 $5 {[%cal Rg6g5]}) 23. Rcd1 {[%emt 0:05:30]} Re8 {[%emt 0:03:30]} (23... Rd8 $11) 24. Kg2 {[%emt 0:04:30]} (24. R3d2 $1 $14 Qa4 25. Nh3) 24... b5 {[%emt 0:04:30]} (24... Nc6 $11 25. h6 g5) 25. cxb5 $16 {[%emt 0:02:30] [#] And now Nf3 would win.} d5 {[%emt 0:01:30]} 26. Rf3 {[%emt 0:04:30]} Rf8 {[%emt 0:05:30]} ({Better is} 26... f5) 27. Re3 $2 {[%emt 0:09:17]} ({Inferior is} 27. Qh6 Qa4 28. hxg6 Rxg6 $17) (27. h6 $16 {[%cal Oh6h7] stays on course. Black must now prevent h7+!} f5 28. Re3 Rxe3 29. Qxe3) 27... Rxe3 {[%emt 0:00:30]} (27... d4 $1 $17 28. Rxe6 fxe6) 28. Qxe3 $14 {[%emt 0:00:28]} Qa4 {[%emt 0:00:00][%csl LRb5,LRd1,LRg4]} 29. Qf3 {[%emt 0:00:55] aiming for Re1.} f5 {[%emt 0:06:00]} 30. Re1 {[%emt 0:05:17]} (30. g5 $5 {[%cal Rd1d5]}) 30... fxg4 {[%emt 0:01:30]} 31. Qe3 {[%emt 0:00:23]} Qe4+ {[%emt 0:03:21]} (31... Nf5 $5 {[%cal Rf5e3]} 32. Qe6+ Kh8 $11) 32. Qxe4 {[%emt 0:00:54]} dxe4 {[%emt 0:00:02]} 33. Rxe4 {[%emt 0:01:39]} Nd5 {[%emt 0:01:25]} 34. Rxg4 {[%emt 0:01:01][%cal Be4g4,Bg4g6,Bg6c6][%mdl 32]} Nxc3 {[%emt 0:00:31]} 35. Rxg6+ {[%emt 0:02:19]} Kh7 {[%emt 0:00:41]} 36. Rc6 {[%emt 0:00:50] Weighted Error Value: White=0.35/Black=0.27 (precise)} 1/2-1/2